[Event "FIDE Women World Blitz 2021"]
[Site "Warsaw"]
[Date "2021.12.29"]
[Round "7.27"]
[White "Danielian, Elina"]
[Black "Salimova, Nurgyul"]
[Result "0-1"]
[ECO "D00"]
[WhiteElo "2450"]
[BlackElo "2353"]
[Annotator "ChessBase"]
[PlyCount "118"]
[EventDate "2021.12.29"]
[EventType "swiss"]
[EventCountry "POL"]
[Tiebreak "Cut1 Buchholz"]
[SourceTitle "playchess.com"]
[Source "ChessBase"]
[SourceQuality "1"]
[TimeControl "180+2"]

1. d4 {[%emt 0:00:01]} Nf6 {[%emt 0:00:01]} 2. Bg5 {[%emt 0:00:00]} d5 {
[%emt 0:00:01]} 3. Bxf6 {[%emt 0:00:02]} exf6 {[%emt 0:00:02]} 4. e3 {[%emt 0:
00:01]} c6 {[%emt 0:00:01]} 5. g3 {[%emt 0:00:02]} Bd6 {[%emt 0:00:03]} 6. Bg2
{[%emt 0:00:00]} Qb6 {[%emt 0:00:01]} 7. b3 {[%emt 0:00:02]} h5 {[%emt 0:00:14]
} 8. h4 {[%emt 0:00:01]} Bg4 {[%emt 0:00:08]} 9. Bf3 {[%emt 0:00:49]} Bxf3 {
[%emt 0:00:07]} 10. Nxf3 {[%emt 0:00:06]} Nd7 {[%emt 0:00:05]} 11. Kf1 {
[%emt 0:00:08]} f5 {[%emt 0:00:14]} 12. Kg2 {[%emt 0:00:07]} Nf6 {[%emt 0:00:
01]} 13. c4 {[%emt 0:00:02]} Qc7 {[%emt 0:00:24]} 14. Nc3 {[%emt 0:00:07]} Bb4
{[%emt 0:00:09]} 15. Ne2 {[%emt 0:00:26]} dxc4 {[%emt 0:00:09]} 16. bxc4 {
[%emt 0:00:01]} Ne4 {[%emt 0:00:09]} 17. Rb1 {[%emt 0:00:06]} Be7 {[%emt 0:00:
13]} 18. Qc2 {[%emt 0:00:18]} O-O {[%emt 0:00:18]} 19. Nf4 {[%emt 0:00:06]} g6
{[%emt 0:00:11]} 20. c5 {[%emt 0:00:08]} b6 {[%emt 0:00:26]} 21. cxb6 {[%emt 0:
00:02]} axb6 {[%emt 0:00:01]} 22. Nd5 {[%emt 0:00:21]} Qd6 {[%emt 0:00:14]} 23.
Nxb6 {[%emt 0:00:11]} Ra6 {[%emt 0:00:03]} 24. Rb2 {[%emt 0:00:09]} Qe6 {
[%emt 0:00:12]} 25. Rhb1 {[%emt 0:00:19]} Rb8 {[%emt 0:00:09]} 26. Rb3 {
[%emt 0:00:09]} Rd8 {[%emt 0:00:07]} 27. R1b2 {[%emt 0:00:05]} Bf6 {[%emt 0:00:
04]} 28. Qc4 {[%emt 0:00:03]} Qxc4 29. Nxc4 {[%emt 0:00:01]} c5 {[%emt 0:00:07]
} 30. Rb6 {[%emt 0:00:04]} Rxb6 {[%emt 0:00:02]} 31. Rxb6 {[%emt 0:00:01]} cxd4
{[%emt 0:00:01]} 32. exd4 {[%emt 0:00:04]} Bxd4 {[%emt 0:00:03]} 33. Nxd4 {
[%emt 0:00:03]} Rxd4 {[%emt 0:00:01]} 34. Ne3 {[%emt 0:00:01]} Rd2 {[%emt 0:00:
02]} 35. a4 {[%emt 0:00:01]} Rxf2+ {[%emt 0:00:02]} 36. Kg1 {[%emt 0:00:01]}
Re2 {[%emt 0:00:01]} 37. Nd5 {[%emt 0:00:01]} Nxg3 {[%emt 0:00:03]} 38. a5 Ra2
{[%emt 0:00:04]} 39. a6 {[%emt 0:00:01]} Ne2+ {[%emt 0:00:03]} 40. Kf1 {
[%emt 0:00:01]} Nd4 {[%emt 0:00:01]} 41. Nb4 {[%emt 0:00:03]} Ra1+ {[%emt 0:00:
02]} 42. Kf2 {[%emt 0:00:00]} Ne6 {[%emt 0:00:02]} 43. Rb8+ {[%emt 0:00:03]}
Kg7 {[%emt 0:00:01]} 44. Rb7 {[%emt 0:00:02]} Nc5 {[%emt 0:00:01]} 45. Ra7 {
[%emt 0:00:02]} Ra4 {[%emt 0:00:02]} 46. Rc7 {[%emt 0:00:01]} Nxa6 {[%emt 0:00:
03]} 47. Nxa6 Rxa6 {[%emt 0:00:00]} 48. Kg3 {[%emt 0:00:04]} Ra3+ {[%emt 0:00:
01]} 49. Kf4 {[%emt 0:00:01]} Ra4+ {[%emt 0:00:01]} 50. Kg3 {[%emt 0:00:01]}
Rg4+ 51. Kh3 f4 {[%emt 0:00:01]} 52. Rc4 Rg3+ {[%emt 0:00:06]} 53. Kh2 {
[%emt 0:00:01]} Rg4 {[%emt 0:00:01]} 54. Kh3 {[%emt 0:00:01]} f3 {[%emt 0:00:
01]} 55. Rc3 {[%emt 0:00:02]} Rf4 {[%emt 0:00:04]} 56. Rc1 {[%emt 0:00:02]} f2
{[%emt 0:00:01]} 57. Rf1 {[%emt 0:00:00]} Kf6 {[%emt 0:00:03]} 58. Kg3 {
[%emt 0:00:00]} Kf5 {[%emt 0:00:02]} 59. Kg2 Kg4 {[%emt 0:00:01]} 0-1

[Event "FIDE Women World Blitz 2021"]
[Site "Warsaw"]
[Date "2021.12.29"]
[Round "7.28"]
[White "Pourkashiyan, Atousa"]
[Black "Kiolbasa, Oliwia"]
[Result "0-1"]
[ECO "C92"]
[WhiteElo "2322"]
[BlackElo "2403"]
[Annotator "NA"]
[PlyCount "190"]
[EventDate "2021.12.29"]
[EventType "swiss"]
[EventCountry "POL"]
[Tiebreak "Cut1 Buchholz"]
[SourceTitle "playchess.com"]
[Source "ChessBase"]
[SourceQuality "1"]
[TimeControl "180+2"]

1. e4 {[%emt 0:00:02]} e5 {[%emt 0:00:01]} 2. Nf3 {[%emt 0:00:03]} Nc6 {
[%emt 0:00:02]} 3. Bb5 {[%emt 0:00:01]} a6 {[%emt 0:00:01]} 4. Ba4 {[%emt 0:00:
01]} Nf6 {[%emt 0:00:01]} 5. O-O {[%emt 0:00:03]} Be7 {[%emt 0:00:05]} 6. Re1 {
[%emt 0:00:02]} b5 {[%emt 0:00:01]} 7. Bb3 {[%emt 0:00:01]} d6 {[%emt 0:00:01]}
8. c3 {[%emt 0:00:02]} O-O {[%emt 0:00:02]} 9. h3 {[%emt 0:00:01]} Bb7 {
[%emt 0:00:01]} 10. d3 {[%emt 0:00:04]} Na5 {[%emt 0:00:08]} 11. Bc2 {[%emt 0:
00:02]} c5 {[%emt 0:00:01]} 12. Nbd2 {[%emt 0:00:01]} Nc6 {[%emt 0:00:03]} 13.
Nf1 {[%emt 0:00:02]} Re8 {[%emt 0:00:03]} 14. Ng3 {[%emt 0:00:02]} Bf8 {
[%emt 0:00:06]} 15. Bg5 {[%emt 0:00:12]} h6 {[%emt 0:00:02]} 16. Be3 {[%emt 0:
00:10]} d5 {[%emt 0:00:17]} 17. Qe2 {[%emt 0:00:13]} Qc7 {[%emt 0:00:16]} 18.
Rad1 {[%emt 0:00:25]} Rad8 {[%emt 0:00:02]} 19. Bc1 {[%emt 0:00:33]} b4 {
[%emt 0:00:29]} 20. Ba4 {[%emt 0:00:38]} Qa5 {[%emt 0:00:27]} 21. Qc2 {[%emt 0:
00:12]} bxc3 {[%emt 0:00:44]} 22. bxc3 {[%emt 0:00:02]} d4 {[%emt 0:00:04]} 23.
Bd2 {[%emt 0:00:07]} Qc7 {[%emt 0:00:21]} 24. c4 {[%emt 0:00:01]} Rb8 {[%emt 0:
00:04]} 25. Nf5 {[%emt 0:00:09]} Re6 {[%emt 0:00:05]} 26. g4 {[%emt 0:00:04]}
Ne8 {[%emt 0:00:09]} 27. Kh1 {[%emt 0:00:05]} Nb4 {[%emt 0:00:08]} 28. Qb1 {
[%emt 0:00:21]} Kh7 {[%emt 0:00:06]} 29. Rg1 {[%emt 0:00:04]} g6 {[%emt 0:00:
03]} 30. Ng3 {[%emt 0:00:04]} Bc8 {[%emt 0:00:02]} 31. Bc1 {[%emt 0:00:04]}
Reb6 {[%emt 0:00:03]} 32. Qa1 {[%emt 0:00:04]} Bb7 {[%emt 0:00:03]} 33. a3 {
[%emt 0:00:03]} Nc6 {[%emt 0:00:02]} 34. Bc2 {[%emt 0:00:05]} Nd8 {[%emt 0:00:
02]} 35. Bd2 {[%emt 0:00:01]} Rc6 {[%emt 0:00:03]} 36. Qc1 {[%emt 0:00:01]} Ne6
{[%emt 0:00:01]} 37. Nh4 {[%emt 0:00:02]} Nf4 {[%emt 0:00:02]} 38. Bxf4 {
[%emt 0:00:02]} exf4 {[%emt 0:00:01]} 39. Ne2 {[%emt 0:00:00]} Bd6 {[%emt 0:00:
01]} 40. Nf3 {[%emt 0:00:02]} f6 {[%emt 0:00:03]} 41. Qd2 {[%emt 0:00:03]} Rb6
{[%emt 0:00:01]} 42. Rb1 {[%emt 0:00:01]} Ba8 {[%emt 0:00:01]} 43. Rxb6 {
[%emt 0:00:02]} Rxb6 {[%emt 0:00:01]} 44. Ne1 {[%emt 0:00:02]} Rb2 {[%emt 0:00:
01]} 45. Qc1 {[%emt 0:00:02]} Qb8 {[%emt 0:00:01]} 46. f3 {[%emt 0:00:03]} Nc7
{[%emt 0:00:01]} 47. Ng2 {[%emt 0:00:02]} Ne6 {[%emt 0:00:01]} 48. h4 {[%emt 0:
00:02]} h5 {[%emt 0:00:03]} 49. gxh5 {[%emt 0:00:03]} gxh5 {[%emt 0:00:01]} 50.
Kh2 {[%emt 0:00:01]} Nf8 {[%emt 0:00:03]} 51. Bb1 {[%emt 0:00:02]} Ng6 {
[%emt 0:00:01]} 52. Qf1 {[%emt 0:00:02]} Bc6 {[%emt 0:00:02]} 53. Qd1 {[%emt 0:
00:03]} Qe8 {[%emt 0:00:06]} 54. Bc2 {[%emt 0:00:01]} Qb8 {[%emt 0:00:03]} 55.
Qc1 {[%emt 0:00:02]} Rb7 {[%emt 0:00:02]} 56. Qd2 {[%emt 0:00:02]} Qc7 {
[%emt 0:00:02]} 57. Rb1 {[%emt 0:00:05]} Rxb1 {[%emt 0:00:02]} 58. Bxb1 {
[%emt 0:00:01]} Qb8 {[%emt 0:00:04]} 59. Kg1 {[%emt 0:00:02]} Qxb1+ {[%emt 0:
00:02]} 60. Kf2 {[%emt 0:00:01]} Qb3 {[%emt 0:00:03]} 61. Qa5 {[%emt 0:00:01]}
Qb7 {[%emt 0:00:02]} 62. Qd8 {[%emt 0:00:01]} Be7 {[%emt 0:00:01]} 63. Qa5 {
[%emt 0:00:03]} Nf8 {[%emt 0:00:02]} 64. Ngxf4 {[%emt 0:00:02]} Ng6 {[%emt 0:
00:01]} 65. Nxh5 {[%emt 0:00:01]} Nxh4 {[%emt 0:00:01]} 66. Nhg3 {[%emt 0:00:
04]} f5 {[%emt 0:00:01]} 67. Qd2 {[%emt 0:00:05]} fxe4 {[%emt 0:00:02]} 68.
fxe4 {[%emt 0:00:01]} Bd6 {[%emt 0:00:04]} 69. Qg5 {[%emt 0:00:03]} Qf7+ {
[%emt 0:00:01]} 70. Nf5 {[%emt 0:00:02]} Nxf5 {[%emt 0:00:00]} 71. exf5 {
[%emt 0:00:01]} Bd7 {[%emt 0:00:00]} 72. Qh4+ {[%emt 0:00:00]} Kg7 {[%emt 0:00:
00]} 73. Qg5+ {[%emt 0:00:01]} Kf8 {[%emt 0:00:00]} 74. Qd8+ {[%emt 0:00:01]}
Kg7 {[%emt 0:00:00]} 75. Qg5+ {[%emt 0:00:02]} Kh7 {[%emt 0:00:00]} 76. Qh4+ {
[%emt 0:00:00]} Kg8 {[%emt 0:00:00]} 77. Qg5+ {[%emt 0:00:07]} Qg7 {[%emt 0:00:
00]} 78. Qd8+ {[%emt 0:00:00]} Kh7 {[%emt 0:00:09]} 79. f6 {[%emt 0:00:04]} Qf7
{[%emt 0:00:01]} 80. Ng1 {[%emt 0:00:05]} Be5 {[%emt 0:00:07]} 81. Nf3 {
[%emt 0:00:02]} Bxf6 {[%emt 0:00:04]} 82. Qc7 {[%emt 0:00:01]} Kg8 {[%emt 0:00:
05]} 83. Qb8+ {[%emt 0:00:01]} Kg7 {[%emt 0:00:02]} 84. Qg3+ {[%emt 0:00:01]}
Kh7 {[%emt 0:00:02]} 85. Qh2+ {[%emt 0:00:01]} Kg8 {[%emt 0:00:05]} 86. Qb8+ {
[%emt 0:00:01]} Be8 {[%emt 0:00:01]} 87. Qg3+ {[%emt 0:00:02]} Bg7 {[%emt 0:00:
01]} 88. Qd6 {[%emt 0:00:02]} Qf8 {[%emt 0:00:04]} 89. Qd5+ {[%emt 0:00:01]}
Bf7 {[%emt 0:00:01]} 90. Qc6 {[%emt 0:00:01]} Bh5 {[%emt 0:00:03]} 91. Qd5+ {
[%emt 0:00:01]} Qf7 {[%emt 0:00:02]} 92. Qa8+ {[%emt 0:00:02]} Kh7 {[%emt 0:00:
03]} 93. Qe4+ {[%emt 0:00:01]} Kg8 {[%emt 0:00:02]} 94. Qa8+ {[%emt 0:00:01]}
Bf8 {[%emt 0:00:01]} 95. a4 {[%emt 0:00:13]} Bxf3 {[%emt 0:00:01]} 0-1

[Event "FIDE Women World Blitz 2021"]
[Site "Warsaw"]
[Date "2021.12.29"]
[Round "7.29"]
[White "Dworakowska, Joanna"]
[Black "Kucharska, Honorata"]
[Result "1-0"]
[ECO "B25"]
[WhiteElo "2228"]
[BlackElo "2168"]
[Annotator "NA"]
[PlyCount "115"]
[EventDate "2021.12.29"]
[EventType "swiss"]
[EventCountry "POL"]
[Tiebreak "Cut1 Buchholz"]
[SourceTitle "playchess.com"]
[Source "ChessBase"]
[SourceQuality "1"]
[TimeControl "180+2"]

1. e4 {[%emt 0:00:01]} c5 {[%emt 0:00:01]} 2. Nf3 {[%emt 0:00:01]} Nc6 {
[%emt 0:00:01]} 3. g3 {[%emt 0:00:01]} d6 {[%emt 0:00:02]} 4. Bg2 {[%emt 0:00:
02]} Nf6 {[%emt 0:00:02]} 5. Nc3 {[%emt 0:00:03]} g6 {[%emt 0:00:01]} 6. O-O {
[%emt 0:00:02]} Bg7 {[%emt 0:00:01]} 7. d3 {[%emt 0:00:02]} O-O {[%emt 0:00:03]
} 8. h3 {[%emt 0:00:01]} Rb8 {[%emt 0:00:07]} 9. Be3 {[%emt 0:00:02]} e5 {
[%emt 0:00:04]} 10. Qd2 {[%emt 0:00:06]} Nd4 {[%emt 0:00:20]} 11. Ne1 {[%emt 0:
00:04]} b5 {[%emt 0:00:04]} 12. Bg5 {[%emt 0:00:32]} Ne6 {[%emt 0:00:07]} 13.
Bh6 {[%emt 0:00:05]} b4 {[%emt 0:00:06]} 14. Nd1 {[%emt 0:00:03]} d5 {[%emt 0:
00:09]} 15. exd5 {[%emt 0:00:10]} Nxd5 {[%emt 0:00:01]} 16. a3 {[%emt 0:00:29]}
a5 {[%emt 0:00:10]} 17. axb4 {[%emt 0:00:04]} cxb4 {[%emt 0:00:02]} 18. Bxg7 {
[%emt 0:00:13]} Kxg7 {[%emt 0:00:08]} 19. Ne3 {[%emt 0:00:01]} Nxe3 {[%emt 0:
00:17]} 20. Qxe3 {[%emt 0:00:02]} f6 {[%emt 0:00:02]} 21. Qa7+ {[%emt 0:00:07]}
Qc7 {[%emt 0:00:15]} 22. Qxc7+ {[%emt 0:00:11]} Nxc7 {[%emt 0:00:02]} 23. Rxa5
{[%emt 0:00:02]} Rf7 {[%emt 0:00:01]} 24. f4 {[%emt 0:00:18]} exf4 {[%emt 0:00:
14]} 25. Rxf4 {[%emt 0:00:01]} Ne6 {[%emt 0:00:12]} 26. Rc4 {[%emt 0:00:04]}
Re7 {[%emt 0:00:52]} 27. Kf2 {[%emt 0:00:04]} f5 {[%emt 0:00:03]} 28. Ra4 {
[%emt 0:00:03]} Kf6 {[%emt 0:00:09]} 29. Raxb4 {[%emt 0:00:02]} Rxb4 {[%emt 0:
00:01]} 30. Rxb4 {[%emt 0:00:02]} Rc7 {[%emt 0:00:01]} 31. c3 {[%emt 0:00:07]}
h5 {[%emt 0:00:06]} 32. Rb6 {[%emt 0:00:01]} Bd7 {[%emt 0:00:05]} 33. Bd5 {
[%emt 0:00:07]} Ke7 {[%emt 0:00:06]} 34. Bxe6 {[%emt 0:00:09]} Bxe6 {[%emt 0:
00:01]} 35. Nf3 {[%emt 0:00:03]} Ra7 {[%emt 0:00:05]} 36. Nd4 {[%emt 0:00:05]}
Bd7 {[%emt 0:00:05]} 37. Rxg6 {[%emt 0:00:03]} Ra2 {[%emt 0:00:01]} 38. Rb6 {
[%emt 0:00:02]} Ra1 {[%emt 0:00:03]} 39. c4 {[%emt 0:00:07]} Rd1 {[%emt 0:00:
02]} 40. Ke3 {[%emt 0:00:03]} Rg1 {[%emt 0:00:02]} 41. Kf4 {[%emt 0:00:01]} Rd1
{[%emt 0:00:03]} 42. Nxf5+ {[%emt 0:00:10]} Bxf5 {[%emt 0:00:01]} 43. Kxf5 {
[%emt 0:00:02]} Rxd3 {[%emt 0:00:01]} 44. g4 {[%emt 0:00:06]} h4 {[%emt 0:00:
01]} 45. c5 {[%emt 0:00:06]} Rxh3 {[%emt 0:00:03]} 46. Rb7+ {[%emt 0:00:01]}
Kd8 {[%emt 0:00:02]} 47. Kg5 {[%emt 0:00:06]} Rh2 {[%emt 0:00:03]} 48. b4 {
[%emt 0:00:12]} h3 {[%emt 0:00:01]} 49. b5 {[%emt 0:00:03]} Rc2 {[%emt 0:00:03]
} 50. c6 {[%emt 0:00:02]} h2 {[%emt 0:00:01]} 51. Rh7 {[%emt 0:00:03]} Rc5+ {
[%emt 0:00:03]} 52. Kf6 {[%emt 0:00:01]} Rc2 {[%emt 0:00:03]} 53. Ke6 {[%emt 0:
00:03]} Re2+ {[%emt 0:00:03]} 54. Kd6 {[%emt 0:00:01]} Rd2+ {[%emt 0:00:01]}
55. Kc5 {[%emt 0:00:01]} Rc2+ {[%emt 0:00:01]} 56. Kb6 {[%emt 0:00:01]} Rb2 {
[%emt 0:00:03]} 57. c7+ {[%emt 0:00:01]} Kc8 {[%emt 0:00:01]} 58. Rh8+ {
[%emt 0:00:02]} 1-0

[Event "FIDE Women World Blitz 2021"]
[Site "Warsaw"]
[Date "2021.12.29"]
[Round "7.30"]
[White "Yakimova, Mariya"]
[Black "Lach, Aleksandra"]
[Result "0-1"]
[ECO "A87"]
[WhiteElo "2219"]
[BlackElo "2204"]
[Annotator "NA"]
[PlyCount "60"]
[EventDate "2021.12.29"]
[EventType "swiss"]
[EventCountry "POL"]
[Tiebreak "Cut1 Buchholz"]
[SourceTitle "playchess.com"]
[Source "ChessBase"]
[SourceQuality "1"]
[TimeControl "180+2"]

1. d4 {[%emt 0:00:02]} f5 {[%emt 0:00:00]} 2. c4 {[%emt 0:00:01]} Nf6 {[%emt 0:
00:02]} 3. Nc3 {[%emt 0:00:00]} d6 {[%emt 0:00:01]} 4. Nf3 {[%emt 0:00:02]} g6
{[%emt 0:00:03]} 5. g3 {[%emt 0:00:01]} Bg7 {[%emt 0:00:01]} 6. Bg2 {[%emt 0:
00:01]} O-O {[%emt 0:00:01]} 7. O-O {[%emt 0:00:02]} e6 {[%emt 0:00:01]} 8. Qc2
{[%emt 0:00:14]} Nc6 {[%emt 0:00:00]} 9. e4 {[%emt 0:00:11]} e5 {[%emt 0:00:23]
} 10. dxe5 {[%emt 0:00:15]} dxe5 {[%emt 0:00:06]} 11. Bg5 {[%emt 0:00:21]} h6 {
[%emt 0:00:21]} 12. Rad1 {[%emt 0:00:00]} Qe8 {[%emt 0:00:25]} 13. Bxf6 {
[%emt 0:00:03]} Rxf6 {[%emt 0:00:06]} 14. Nd5 {[%emt 0:00:06]} Rf7 {[%emt 0:00:
00]} 15. exf5 {[%emt 0:00:06]} Bxf5 {[%emt 0:00:07]} 16. Qc1 {[%emt 0:00:01]}
Bg4 {[%emt 0:00:07]} 17. Qe3 {[%emt 0:00:39]} Kh7 {[%emt 0:00:34]} 18. h3 {
[%emt 0:00:05]} Bxf3 {[%emt 0:00:11]} 19. Bxf3 {[%emt 0:00:01]} Nd4 {[%emt 0:
00:01]} 20. Be4 {[%emt 0:00:22]} c6 {[%emt 0:00:01]} 21. Nc3 {[%emt 0:00:01]}
Qe6 {[%emt 0:00:00]} 22. Qd3 {[%emt 0:00:15]} Rf6 {[%emt 0:00:02]} 23. Bg2 {
[%emt 0:00:02]} Raf8 {[%emt 0:00:15]} 24. Ne4 {[%emt 0:00:01]} R6f7 {[%emt 0:
00:01]} 25. b3 {[%emt 0:00:07]} b6 {[%emt 0:00:14]} 26. Kh2 {[%emt 0:00:07]} c5
{[%emt 0:00:12]} 27. Nc3 {[%emt 0:00:12]} Rxf2 {[%emt 0:00:03]} 28. Rxf2 {
[%emt 0:00:10]} Rxf2 {[%emt 0:00:01]} 29. Rf1 {[%emt 0:00:16]} Nf3+ {[%emt 0:
00:00]} 30. Kh1 {[%emt 0:00:01]} Qxh3+ {[%emt 0:00:02]} 0-1

[Event "FIDE Women World Blitz 2021"]
[Site "Warsaw"]
[Date "2021.12.29"]
[Round "7.31"]
[White "Hryzlova, Sofiia"]
[Black "Garcia Martin, Marta"]
[Result "1/2-1/2"]
[ECO "A46"]
[WhiteElo "2097"]
[BlackElo "2194"]
[Annotator "NA"]
[PlyCount "199"]
[EventDate "2021.12.29"]
[EventType "swiss"]
[EventCountry "POL"]
[Tiebreak "Cut1 Buchholz"]
[SourceTitle "playchess.com"]
[Source "ChessBase"]
[SourceQuality "1"]
[TimeControl "180+2"]

1. d4 {[%emt 0:00:01]} d5 {[%emt 0:00:01]} 2. Nf3 {[%emt 0:00:01]} Nf6 {
[%emt 0:00:01]} 3. g3 {[%emt 0:00:01]} e6 {[%emt 0:00:03]} 4. Bg2 {[%emt 0:00:
02]} b5 {[%emt 0:00:21]} 5. a4 {[%emt 0:00:05]} b4 {[%emt 0:00:02]} 6. c3 {
[%emt 0:00:02]} a5 {[%emt 0:00:28]} 7. c4 {[%emt 0:00:05]} Ba6 {[%emt 0:00:44]}
8. cxd5 {[%emt 0:00:16]} exd5 {[%emt 0:00:03]} 9. O-O {[%emt 0:00:04]} Bd6 {
[%emt 0:00:00]} 10. Nbd2 {[%emt 0:00:12]} O-O {[%emt 0:00:04]} 11. Nb3 {
[%emt 0:00:03]} Re8 {[%emt 0:00:28]} 12. Re1 {[%emt 0:00:01]} Qe7 {[%emt 0:00:
01]} 13. Bf1 {[%emt 0:00:16]} Bc4 {[%emt 0:00:18]} 14. Nbd2 {[%emt 0:00:51]}
Ba6 {[%emt 0:00:01]} 15. Nb3 {[%emt 0:00:13]} Bc8 {[%emt 0:00:03]} 16. Qc2 {
[%emt 0:00:05]} Ne4 {[%emt 0:00:07]} 17. Be3 {[%emt 0:00:07]} h5 {[%emt 0:00:
27]} 18. Nc5 {[%emt 0:00:12]} Bf5 {[%emt 0:00:02]} 19. Qb3 {[%emt 0:00:11]} c6
{[%emt 0:00:12]} 20. Rac1 {[%emt 0:00:06]} Nd7 {[%emt 0:00:04]} 21. Nxe4 {
[%emt 0:00:03]} dxe4 {[%emt 0:00:01]} 22. Nd2 {[%emt 0:00:09]} c5 {[%emt 0:00:
04]} 23. Nc4 {[%emt 0:00:04]} cxd4 {[%emt 0:00:03]} 24. Bxd4 {[%emt 0:00:02]}
Bc5 {[%emt 0:00:02]} 25. Qe3 {[%emt 0:00:07]} Bxd4 {[%emt 0:00:06]} 26. Qxd4 {
[%emt 0:00:01]} Red8 {[%emt 0:00:01]} 27. Qd6 {[%emt 0:00:09]} Qe8 {[%emt 0:00:
05]} 28. Qf4 {[%emt 0:00:04]} Qe6 {[%emt 0:00:01]} 29. Ne3 {[%emt 0:00:05]} Bg6
{[%emt 0:00:01]} 30. Red1 {[%emt 0:00:06]} Nf6 {[%emt 0:00:01]} 31. Qc7 {
[%emt 0:00:02]} Rdc8 {[%emt 0:00:02]} 32. Qf4 {[%emt 0:00:06]} Qb3 {[%emt 0:00:
01]} 33. Rxc8+ {[%emt 0:00:05]} Rxc8 {[%emt 0:00:01]} 34. Qe5 {[%emt 0:00:01]}
Qxa4 {[%emt 0:00:04]} 35. Bh3 {[%emt 0:00:03]} Re8 {[%emt 0:00:01]} 36. Qc7 {
[%emt 0:00:02]} Ng4 {[%emt 0:00:06]} 37. Bxg4 {[%emt 0:00:02]} hxg4 {[%emt 0:
00:00]} 38. Rd7 {[%emt 0:00:04]} Qa1+ {[%emt 0:00:01]} 39. Kg2 {[%emt 0:00:01]}
Qxb2 {[%emt 0:00:01]} 40. Qxa5 {[%emt 0:00:02]} b3 {[%emt 0:00:05]} 41. Qb5 {
[%emt 0:00:04]} Rc8 {[%emt 0:00:03]} 42. Rb7 {[%emt 0:00:02]} Qc3 {[%emt 0:00:
03]} 43. Qxb3 {[%emt 0:00:02]} Qxb3 {[%emt 0:00:02]} 44. Rxb3 {[%emt 0:00:01]}
Rd8 {[%emt 0:00:01]} 45. Nxg4 {[%emt 0:00:01]} Rd2 46. Re3 {[%emt 0:00:06]} Bh5
{[%emt 0:00:04]} 47. Ne5 {[%emt 0:00:03]} Bxe2 {[%emt 0:00:03]} 48. Rxe4 {
[%emt 0:00:01]} Bb5 {[%emt 0:00:02]} 49. Re3 {[%emt 0:00:02]} Ba6 {[%emt 0:00:
01]} 50. h4 {[%emt 0:00:01]} Bb7+ {[%emt 0:00:04]} 51. Kh3 {[%emt 0:00:05]}
Rxf2 {[%emt 0:00:00]} 52. Ng4 {[%emt 0:00:02]} Rf1 {[%emt 0:00:00]} 53. Re2 {
[%emt 0:00:03]} Rh1+ {[%emt 0:00:01]} 54. Nh2 {[%emt 0:00:01]} Bc8+ {[%emt 0:
00:01]} 55. g4 {[%emt 0:00:01]} Be6 {[%emt 0:00:01]} 56. Kg3 {[%emt 0:00:01]}
Rg1+ {[%emt 0:00:01]} 57. Kh3 {[%emt 0:00:01]} Kf8 {[%emt 0:00:01]} 58. Rg2 {
[%emt 0:00:01]} Ra1 {[%emt 0:00:02]} 59. Rd2 {[%emt 0:00:01]} Ra3+ {[%emt 0:00:
01]} 60. Kg2 {[%emt 0:00:01]} f6 {[%emt 0:00:01]} 61. Rf2 {[%emt 0:00:01]} Kf7
{[%emt 0:00:01]} 62. g5 {[%emt 0:00:02]} Bd5+ {[%emt 0:00:01]} 63. Kf1 {
[%emt 0:00:02]} Ra1+ {[%emt 0:00:01]} 64. Ke2 {[%emt 0:00:01]} Ra2+ {[%emt 0:
00:01]} 65. Kf1 {[%emt 0:00:01]} Bc4+ {[%emt 0:00:02]} 66. Kg2 {[%emt 0:00:02]}
Bd5+ {[%emt 0:00:04]} 67. Kf1 {[%emt 0:00:01]} Ra1+ {[%emt 0:00:01]} 68. Ke2 {
[%emt 0:00:01]} Kg6 {[%emt 0:00:03]} 69. gxf6 {[%emt 0:00:02]} gxf6 {[%emt 0:
00:01]} 70. Ng4 {[%emt 0:00:01]} f5 {[%emt 0:00:06]} 71. Ne5+ {[%emt 0:00:02]}
Kf6 {[%emt 0:00:01]} 72. Nf3 {[%emt 0:00:02]} Ra2+ {[%emt 0:00:03]} 73. Ke1 {
[%emt 0:00:02]} Ra1+ {[%emt 0:00:04]} 74. Ke2 {[%emt 0:00:01]} Ra4 {[%emt 0:00:
03]} 75. Ke3 {[%emt 0:00:03]} Re4+ {[%emt 0:00:02]} 76. Kd3 {[%emt 0:00:02]}
Rg4 {[%emt 0:00:03]} 77. Ke3 {[%emt 0:00:02]} Bxf3 {[%emt 0:00:04]} 78. Kxf3 {
[%emt 0:00:03]} Rxh4 {[%emt 0:00:01]} 79. Ra2 {[%emt 0:00:02]} Rh3+ {[%emt 0:
00:02]} 80. Kf4 {[%emt 0:00:01]} Rh4+ {[%emt 0:00:01]} 81. Kf3 {[%emt 0:00:01]}
Rb4 {[%emt 0:00:03]} 82. Ra6+ {[%emt 0:00:01]} Kg5 {[%emt 0:00:00]} 83. Ra3 {
[%emt 0:00:02]} Rc4 {[%emt 0:00:04]} 84. Rb3 {[%emt 0:00:02]} Rh4 {[%emt 0:00:
01]} 85. Kf2 {[%emt 0:00:03]} f4 {[%emt 0:00:03]} 86. Rb5+ {[%emt 0:00:01]} Kg4
{[%emt 0:00:02]} 87. Rb3 {[%emt 0:00:05]} Rh2+ {[%emt 0:00:01]} 88. Kg1 {
[%emt 0:00:01]} Ra2 {[%emt 0:00:02]} 89. Kf1 {[%emt 0:00:02]} Rc2 {[%emt 0:00:
05]} 90. Kg1 {[%emt 0:00:01]} Re2 {[%emt 0:00:02]} 91. Kf1 {[%emt 0:00:03]} Ra2
{[%emt 0:00:02]} 92. Kg1 {[%emt 0:00:01]} f3 {[%emt 0:00:02]} 93. Rb8 {[%emt 0:
00:02]} Kg3 {[%emt 0:00:01]} 94. Rg8+ {[%emt 0:00:01]} Kf4 {[%emt 0:00:01]} 95.
Rf8+ {[%emt 0:00:01]} Ke3 {[%emt 0:00:01]} 96. Re8+ {[%emt 0:00:01]} Kd2 {
[%emt 0:00:03]} 97. Rd8+ {[%emt 0:00:02]} Ke2 {[%emt 0:00:01]} 98. Re8+ {
[%emt 0:00:01]} Kd1 {[%emt 0:00:02]} 99. Rf8 {[%emt 0:00:03]} Ke2 {[%emt 0:00:
05]} 100. Re8+ {[%emt 0:00:01]} 1/2-1/2